[Event "African Games Rapid Open 2019"]
[Site "Casablanca"]
[Date "2019.08.26"]
[Round "2.6"]
[White "Tissir, Mohamed"]
[Black "Elarabi, Abobker Mohamed"]
[Result "1/2-1/2"]
[ECO "C50"]
[WhiteElo "2379"]
[BlackElo "2326"]
[Annotator "ChessBase"]
[PlyCount "133"]
[EventDate "2019.08.26"]
[EventType "team-tourn"]
[EventCountry "MAR"]
[SourceTitle "playchess.com"]
[Source "ChessBase"]
[SourceQuality "1"]
[TimeControl "900+10"]

1. e4 {[%emt 0:00:00]} e5 {[%emt 0:00:00]} 2. Nf3 {[%emt 0:00:00]} Nc6 {[%emt 0:00:00]} 3. Bc4 {[%emt 0:00:00]} Be7 {[%emt 0:00:00]} 4. d3 {[%emt 0:00:06]} Nf6 {[%emt 0:00:01]} 5. O-O {[%emt 0:00:04]} O-O {[%emt 0:00:02]} 6. Re1 {[%emt 0:00:04]} d6 {[%emt 0:00:14]} 7. c3 {[%emt 0:00:14]} Na5 {[%emt 0:00:31]} 8. Bb5 {[%emt 0:00:02]} Bd7 {[%emt 0:00:01]} 9. Bxd7 {[%emt 0:00:50]} Qxd7 {[%emt 0:00:02]} 10. d4 {[%emt 0:00:16]} Nc6 {[%emt 0:00:16]} 11. h3 {[%emt 0:00:14]} Rfe8 {[%emt 0:00:31]} 12. d5 {[%emt 0:00:06]} Nd8 {[%emt 0:00:33]} 13. c4 {[%emt 0:00:02]} g6 {[%emt 0:01:58]} 14. Nc3 {[%emt 0:00:02]} Bf8 {[%emt 0:00:10]} 15. a4 {[%emt 0:03:09]} a5 {[%emt 0:00:24]} 16. Bd2 {[%emt 0:00:49]} b6 {[%emt 0:00:13]} 17. b4 {[%emt 0:00:12]} Nb7 {[%emt 0:00:31]} 18. Nb5 {[%emt 0:00:06]} axb4 {[%emt 0:00:09]} 19. Bxb4 {[%emt 0:00:02]} Bg7 {[%emt 0:00:31]} 20. Nd2 {[%emt 0:00:54]} Nh5 {[%emt 0:01:00]} 21. Nb3 {[%emt 0:00:07]} Ra6 {[%emt 0:00:46]} 22. Qg4 {[%emt 0:02:11]} Qe7 {[%emt 0:00:34]} 23. a5 {[%emt 0:00:04]} Rea8 {[%emt 0:00:12]} 24. axb6 {[%emt 0:00:10]} Rxa1 {[%emt 0:00:01]} 25. Rxa1 {[%emt 0:00:15]} Rxa1+ {[%emt 0:00:01]} 26. Nxa1 {[%emt 0:00:02]} cxb6 {[%emt 0:00:17]} 27. Nc2 {[%emt 0:02:42]} Bf8 {[%emt 0:00:10]} 28. Ne3 {[%emt 0:00:22]} Nf6 {[%emt 0:00:53]} 29. Qf3 {[%emt 0:00:55]} Nd7 {[%emt 0:01:29]} 30. Na7 {[%emt 0:01:28]} Nbc5 {[%emt 0:01:27]} 31. Nc6 {[%emt 0:00:24]} Qf6 {[%emt 0:00:17]} 32. Qxf6 {[%emt 0:00:35]} Nxf6 {[%emt 0:00:01]} 33. f3 {[%emt 0:00:01]} Nfd7 {[%emt 0:00:18]} 34. Kf1 {[%emt 0:00:02]} h5 {[%emt 0:00:45]} 35. Ke2 {[%emt 0:00:14]} Kg7 {[%emt 0:00:25]} 36. Nc2 {[%emt 0:00:04]} f5 {[%emt 0:00:31]} 37. exf5 {[%emt 0:00:52]} gxf5 {[%emt 0:00:01]} 38. Ne3 {[%emt 0:01:22]} Kf6 {[%emt 0:00:50]} 39. Be1 {[%emt 0:00:01]} Bh6 {[%emt 0:00:58]} 40. Bh4+ {[%emt 0:01:58]} Bg5 {[%emt 0:00:07]} 41. Bxg5+ {[%emt 0:00:01]} Kxg5 42. g3 f4 {[%emt 0:00:57]} 43. h4+ {[%emt 0:00:02]} Kg6 {[%emt 0:00:06]} 44. gxf4 {[%emt 0:00:03]} exf4 {[%emt 0:00:01]} 45. Ng2 {[%emt 0:00:22]} Kf5 {[%emt 0:00:07]} 46. Nd4+ {[%emt 0:00:35]} Ke5 {[%emt 0:00:10]} 47. Nc6+ {[%emt 0:00:12]} Kf5 {[%emt 0:00:03]} 48. Nd4+ {[%emt 0:00:01]} Ke5 {[%emt 0:00:01]} 49. Ne6 {[%emt 0:00:02]} Nxe6 {[%emt 0:01:04]} 50. dxe6 {[%emt 0:00:02]} Nf6 {[%emt 0:00:02]} 51. e7 {[%emt 0:00:03]} Ne8 {[%emt 0:01:53]} 52. Kd3 {[%emt 0:00:05]} Nf6 {[%emt 0:00:20]} 53. Kc3 {[%emt 0:00:01]} d5 {[%emt 0:00:13]} 54. Kd3 {[%emt 0:00:15]} dxc4+ {[%emt 0:00:23]} 55. Kxc4 {[%emt 0:00:01]} Kd6 {[%emt 0:00:20]} 56. Nxf4 {[%emt 0:01:20]} Kxe7 {[%emt 0:00:02]} 57. Kb5 {[%emt 0:00:06]} Kd6 {[%emt 0:00:06]} 58. Kxb6 {[%emt 0:00:15]} Ke5 {[%emt 0:00:03]} 59. Ne2 {[%emt 0:00:09]} Nd5+ {[%emt 0:00:12]} 60. Kc5 {[%emt 0:00:00]} Ne7 {[%emt 0:01:02]} 61. Ng3 {[%emt 0:00:22]} Ng6 {[%emt 0:00:03]} 62. Nxh5 {[%emt 0:00:09]} Nxh4 {[%emt 0:00:01]} 63. f4+ {[%emt 0:00:04]} Kf5 {[%emt 0:00:04]} 64. Kd4 {[%emt 0:00:05]} Ng2 {[%emt 0:00:04]} 65. Kd3 {[%emt 0:00:15]} Kg6 {[%emt 0:00:04]} 66. Ng3 {[%emt 0:00:17]} Nxf4+ {[%emt 0:00:02]} 67. Ke4 1/2-1/2

[Event "African Games Rapid Open 2019"]
[Site "Casablanca"]
[Date "2019.08.26"]
[Round "2.7"]
[White "Mushore, Emarald Takudzwa"]
[Black "Makoto, Rodwell"]
[Result "1/2-1/2"]
[ECO "D45"]
[WhiteElo "2198"]
[BlackElo "2373"]
[Annotator "ChessBase"]
[PlyCount "35"]
[EventDate "2019.08.26"]
[EventType "team-tourn"]
[EventCountry "MAR"]
[SourceTitle "playchess.com"]
[Source "ChessBase"]
[SourceQuality "1"]
[TimeControl "900+10"]

1. d4 d5 2. Nf3 {[%emt 0:00:00]} Nf6 {[%emt 0:00:00]} 3. c4 {[%emt 0:00:00]} c6 {[%emt 0:00:00]} 4. Nc3 {[%emt 0:00:00]} e6 {[%emt 0:00:13]} 5. e3 {[%emt 0:00:02]} Be7 {[%emt 0:00:39]} 6. Bd3 {[%emt 0:00:11]} dxc4 {[%emt 0:00:23]} 7. Bxc4 {[%emt 0:00:04]} O-O {[%emt 0:00:04]} 8. O-O {[%emt 0:00:03]} b5 {[%emt 0:00:28]} 9. Bb3 {[%emt 0:00:03]} a6 {[%emt 0:00:02]} 10. e4 {[%emt 0:00:51]} c5 {[%emt 0:00:35]} 11. dxc5 {[%emt 0:00:09]} Qxd1 {[%emt 0:00:31]} 12. Rxd1 {[%emt 0:00:07]} Bxc5 {[%emt 0:00:03]} 13. h3 {[%emt 0:00:30]} Bb7 {[%emt 0:00:21]} 14. Re1 {[%emt 0:00:06]} Nc6 {[%emt 0:01:33]} 15. Be3 {[%emt 0:01:16]} Bxe3 {[%emt 0:00:51]} 16. Rxe3 {[%emt 0:00:04]} Na5 {[%emt 0:00:03]} 17. Rae1 {[%emt 0:00:36]} Nxb3 {[%emt 0:00:06]} 18. axb3 {[%emt 0:00:02]} 1/2-1/2

[Event "African Games Rapid Open 2019"]
[Site "Casablanca"]
[Date "2019.08.26"]
[Round "2.8"]
[White "Ssegwanyi, Arthur"]
[Black "Oatlhotse, Providence"]
[Result "1-0"]
[ECO "B28"]
[WhiteElo "2335"]
[BlackElo "2252"]
[Annotator "NA"]
[PlyCount "97"]
[EventDate "2019.08.26"]
[EventType "team-tourn"]
[EventCountry "MAR"]
[SourceTitle "playchess.com"]
[Source "ChessBase"]
[SourceQuality "1"]
[TimeControl "900+10"]

1. e4 {[%emt 0:00:00]} c5 {[%emt 0:00:00]} 2. Nf3 {[%emt 0:00:00]} a6 {[%emt 0:00:00]} 3. c3 {[%emt 0:00:01]} Nf6 {[%emt 0:00:00]} 4. e5 {[%emt 0:00:08]} Nd5 {[%emt 0:00:00]} 5. d4 {[%emt 0:00:03]} cxd4 {[%emt 0:00:02]} 6. cxd4 {[%emt 0:00:01]} e6 {[%emt 0:00:09]} 7. Bc4 {[%emt 0:00:21]} Nb6 {[%emt 0:00:49]} 8. Bd3 {[%emt 0:00:13]} d6 {[%emt 0:00:13]} 9. O-O {[%emt 0:00:12]} N8d7 {[%emt 0:00:33]} 10. Qe2 {[%emt 0:00:26]} dxe5 {[%emt 0:00:56]} 11. dxe5 {[%emt 0:00:28]} Nc5 {[%emt 0:00:09]} 12. Bc2 {[%emt 0:00:50]} Nd5 {[%emt 0:00:29]} 13. a3 {[%emt 0:02:04]} Bd7 {[%emt 0:00:48]} 14. Rd1 {[%emt 0:02:16]} Qc7 {[%emt 0:00:26]} 15. Nd4 {[%emt 0:00:32]} Be7 {[%emt 0:00:45]} 16. Nd2 {[%emt 0:01:51]} Nf4 {[%emt 0:02:23]} 17. Qe3 {[%emt 0:00:30]} Ng6 {[%emt 0:00:07]} 18. N2f3 {[%emt 0:00:08]} Rc8 {[%emt 0:00:39]} 19. Bd2 {[%emt 0:00:36]} Na4 {[%emt 0:01:14]} 20. Rdc1 {[%emt 0:00:54]} Qb8 {[%emt 0:00:47]} 21. b3 {[%emt 0:00:19]} Nb6 {[%emt 0:02:06]} 22. Nxe6 {[%emt 0:01:30]} Bxe6 {[%emt 0:01:38]} 23. Qxb6 {[%emt 0:00:06]} Bc5 {[%emt 0:00:35]} 24. Qa5 {[%emt 0:00:10]} Qa7 {[%emt 0:01:03]} 25. Be4 {[%emt 0:01:39]} b6 {[%emt 0:01:00]} 26. Qa4+ {[%emt 0:00:30]} Bd7 {[%emt 0:00:03]} 27. Qc4 {[%emt 0:00:21]} Bxf2+ {[%emt 0:00:05]} 28. Kxf2 {[%emt 0:00:02]} Rxc4 {[%emt 0:00:00]} 29. Rxc4 {[%emt 0:00:02]} O-O {[%emt 0:00:13]} 30. Rac1 {[%emt 0:00:02]} Qb8 {[%emt 0:00:44]} 31. Rc7 {[%emt 0:00:04]} Be6 {[%emt 0:00:07]} 32. Bb4 {[%emt 0:00:18]} Re8 {[%emt 0:00:19]} 33. Bd6 {[%emt 0:00:17]} Qd8 {[%emt 0:00:01]} 34. Bc6 {[%emt 0:00:03]} Nh4 {[%emt 0:00:29]} 35. Bxe8 {[%emt 0:00:09]} Qxe8 {[%emt 0:00:24]} 36. Nxh4 {[%emt 0:00:07]} h6 {[%emt 0:00:32]} 37. R1c6 {[%emt 0:00:02]} Bd7 {[%emt 0:00:24]} 38. Rxb6 {[%emt 0:00:13]} Qe6 {[%emt 0:00:16]} 39. Rbb7 {[%emt 0:00:09]} Qg4 {[%emt 0:00:23]} 40. Rxd7 {[%emt 0:00:15]} Qxh4+ {[%emt 0:00:02]} 41. Ke2 {[%emt 0:00:19]} Qg4+ {[%emt 0:00:15]} 42. Kd3 {[%emt 0:00:03]} Qg6+ {[%emt 0:00:14]} 43. Kc3 {[%emt 0:00:04]} Qxg2 {[%emt 0:00:12]} 44. Rxf7 {[%emt 0:00:04]} Qh3+ {[%emt 0:00:23]} 45. Kd4 {[%emt 0:00:19]} Qg4+ {[%emt 0:00:13]} 46. Kc3 {[%emt 0:00:27]} Qh3+ {[%emt 0:00:07]} 47. Kb4 {[%emt 0:00:04]} Qh4+ {[%emt 0:00:01]} 48. Ka5 {[%emt 0:00:11]} Qe1+ {[%emt 0:00:07]} 49. b4 {[%emt 0:00:04]} 1-0

[Event "African Games Rapid Open 2019"]
[Site "Casablanca"]
[Date "2019.08.26"]
[Round "2.9"]
[White "Mesfin, Leykun"]
[Black "Boudriga, Mohamed Ali"]
[Result "0-1"]
[ECO "B70"]
[WhiteElo "2151"]
[BlackElo "2325"]
[Annotator "NA"]
[PlyCount "83"]
[EventDate "2019.08.26"]
[EventType "team-tourn"]
[EventCountry "MAR"]
[SourceTitle "playchess.com"]
[Source "ChessBase"]
[SourceQuality "1"]
[TimeControl "900+10"]

1. e4 {[%emt 0:00:05]} c5 {[%emt 0:00:00]} 2. Nf3 {[%emt 0:00:02]} d6 {[%emt 0:00:50]} 3. d4 {[%emt 0:00:02]} cxd4 {[%emt 0:00:03]} 4. Nxd4 {[%emt 0:00:01]} Nf6 {[%emt 0:00:02]} 5. Nc3 {[%emt 0:00:01]} g6 {[%emt 0:00:12]} 6. f3 {[%emt 0:00:03]} a6 {[%emt 0:00:02]} 7. Be3 {[%emt 0:00:01]} Nbd7 {[%emt 0:00:03]} 8. Qd2 {[%emt 0:00:02]} b5 {[%emt 0:00:01]} 9. O-O-O {[%emt 0:00:09]} Bb7 {[%emt 0:00:02]} 10. Kb1 {[%emt 0:00:06]} Rc8 {[%emt 0:00:08]} 11. h4 {[%emt 0:00:09]} h5 {[%emt 0:00:10]} 12. Bd3 {[%emt 0:00:05]} Bg7 {[%emt 0:00:06]} 13. Rhg1 {[%emt 0:00:54]} Qc7 {[%emt 0:00:36]} 14. Nce2 {[%emt 0:01:55]} e5 {[%emt 0:01:18]} 15. Nb3 {[%emt 0:00:17]} d5 {[%emt 0:00:01]} 16. Ng3 {[%emt 0:01:41]} O-O {[%emt 0:01:36]} 17. Bh6 {[%emt 0:00:37]} dxe4 {[%emt 0:00:01]} 18. Nxe4 {[%emt 0:00:12]} Bxe4 {[%emt 0:03:48]} 19. fxe4 {[%emt 0:01:02]} Bxh6 {[%emt 0:00:47]} 20. Qxh6 {[%emt 0:00:05]} Ng4 {[%emt 0:00:26]} 21. Qd2 {[%emt 0:00:18]} Nc5 {[%emt 0:01:08]} 22. Nxc5 {[%emt 0:00:17]} Qxc5 {[%emt 0:00:02]} 23. Rde1 {[%emt 0:01:35]} Rfd8 {[%emt 0:00:37]} 24. Rgf1 {[%emt 0:00:50]} Rd6 {[%emt 0:00:08]} 25. g3 {[%emt 0:01:17]} Kg7 {[%emt 0:00:01]} 26. Qe2 {[%emt 0:00:26]} Rc7 {[%emt 0:00:26]} 27. Rf3 {[%emt 0:01:06]} Rb7 {[%emt 0:01:33]} 28. Ref1 {[%emt 0:00:07]} f6 {[%emt 0:00:02]} 29. Rc1 {[%emt 0:01:03]} Rd4 {[%emt 0:01:40]} 30. c3 {[%emt 0:00:16]} Rd6 {[%emt 0:00:02]} 31. Bc2 {[%emt 0:00:08]} Rbd7 {[%emt 0:00:02]} 32. Rd3 {[%emt 0:00:41]} Rxd3 {[%emt 0:00:42]} 33. Bxd3 {[%emt 0:00:03]} Qf2 {[%emt 0:01:27]} 34. Qxf2 {[%emt 0:00:44]} Nxf2 {[%emt 0:00:01]} 35. Bc2 {[%emt 0:00:02]} Rd2 {[%emt 0:00:29]} 36. Rf1 {[%emt 0:00:38]} Re2 {[%emt 0:00:14]} 37. Kc1 {[%emt 0:01:19]} Kf7 {[%emt 0:00:20]} 38. Bb3+ {[%emt 0:02:01]} Ke7 {[%emt 0:00:04]} 39. Bc2 {[%emt 0:00:17]} Nxe4 {[%emt 0:00:35]} 40. Rf3 Re1+ 41. Bd1 Rg1 42. Rd3 0-1

[Event "African Games Rapid Open 2019"]
[Site "Casablanca"]
[Date "2019.08.26"]
[Round "2.10"]
[White "Zaibi, Amir"]
[Black "Traore, Bakary"]
[Result "1/2-1/2"]
[ECO "E67"]
[WhiteElo "2367"]
[BlackElo "2189"]
[Annotator "NA"]
[PlyCount "79"]
[EventDate "2019.08.26"]
[EventType "team-tourn"]
[EventCountry "MAR"]
[SourceTitle "playchess.com"]
[Source "ChessBase"]
[SourceQuality "1"]
[TimeControl "900+10"]

1. Nf3 {[%emt 0:00:00]} Nf6 {[%emt 0:00:00]} 2. g3 {[%emt 0:00:00]} g6 {[%emt 0:00:00]} 3. Bg2 {[%emt 0:00:00]} Bg7 {[%emt 0:00:00]} 4. O-O {[%emt 0:00:00]} O-O {[%emt 0:00:00]} 5. d4 {[%emt 0:00:03]} d6 {[%emt 0:00:01]} 6. c4 {[%emt 0:00:02]} Nbd7 {[%emt 0:00:01]} 7. Nc3 {[%emt 0:00:02]} e5 {[%emt 0:00:01]} 8. h3 {[%emt 0:00:02]} c6 {[%emt 0:00:38]} 9. e4 {[%emt 0:00:07]} Qb6 {[%emt 0:00:19]} 10. Na4 {[%emt 0:02:16]} Qc7 {[%emt 0:00:16]} 11. dxe5 {[%emt 0:00:16]} Nxe5 {[%emt 0:00:15]} 12. Nxe5 {[%emt 0:00:20]} dxe5 {[%emt 0:00:02]} 13. Qc2 {[%emt 0:00:11]} b6 {[%emt 0:00:09]} 14. b3 {[%emt 0:00:34]} Be6 {[%emt 0:00:12]} 15. Ba3 {[%emt 0:00:46]} Rfd8 {[%emt 0:00:02]} 16. Rad1 {[%emt 0:00:02]} Nh5 {[%emt 0:01:55]} 17. Rxd8+ {[%emt 0:01:14]} Rxd8 {[%emt 0:00:02]} 18. Rd1 {[%emt 0:00:00]} Bf8 {[%emt 0:01:34]} 19. Bc1 {[%emt 0:00:13]} Rxd1+ {[%emt 0:00:11]} 20. Qxd1 {[%emt 0:00:02]} Qd7 {[%emt 0:00:00]} 21. Qxd7 {[%emt 0:00:47]} Bxd7 {[%emt 0:00:02]} 22. Be3 {[%emt 0:01:12]} Ng7 {[%emt 0:00:13]} 23. Nb2 {[%emt 0:01:29]} f6 {[%emt 0:00:14]} 24. Nd3 {[%emt 0:00:43]} Ne6 {[%emt 0:00:37]} 25. f4 {[%emt 0:00:37]} Bd6 {[%emt 0:01:15]} 26. h4 {[%emt 0:00:41]} Kf7 {[%emt 0:01:06]} 27. Bh3 {[%emt 0:01:02]} exf4 {[%emt 0:02:25]} 28. gxf4 {[%emt 0:01:49]} Nc5 {[%emt 0:00:53]} 29. Bxc5 {[%emt 0:01:02]} Bxc5+ {[%emt 0:00:07]} 30. Kh2 {[%emt 0:00:48]} Bxh3 {[%emt 0:00:05]} 31. Kxh3 {[%emt 0:00:00]} Bd6 {[%emt 0:00:12]} 32. Kg4 {[%emt 0:01:21]} h5+ {[%emt 0:00:07]} 33. Kf3 {[%emt 0:00:01]} Ke6 {[%emt 0:00:02]} 34. Ke3 {[%emt 0:00:19]} f5 {[%emt 0:00:09]} 35. Ne1 {[%emt 0:00:22]} Bc5+ {[%emt 0:00:40]} 36. Kd3 {[%emt 0:00:01]} fxe4+ {[%emt 0:00:49]} 37. Kxe4 {[%emt 0:00:01]} Be7 {[%emt 0:00:10]} 38. Nf3 {[%emt 0:00:03]} Bf6 {[%emt 0:00:07]} 39. Ng5+ {[%emt 0:00:31]} Bxg5 {[%emt 0:00:15]} 40. fxg5 {[%emt 0:00:02] Ke5+} 1/2-1/2

[Event "African Games Rapid Open 2019"]
[Site "Casablanca"]
[Date "2019.08.26"]
[Round "2.11"]
[White "Gohil, Mehul"]
[Black "Kayonde, Andrew"]
[Result "0-1"]
[ECO "D11"]
[WhiteElo "2076"]
[BlackElo "2384"]
[Annotator "ChessBase"]
[PlyCount "64"]
[EventDate "2019.08.26"]
[EventType "team-tourn"]
[EventCountry "MAR"]
[SourceTitle "playchess.com"]
[Source "ChessBase"]
[SourceQuality "1"]
[TimeControl "900+10"]

1. d4 {[%emt 0:00:00]} d5 {[%emt 0:00:00]} 2. c4 {[%emt 0:00:00]} c6 {[%emt 0:00:00]} 3. Nf3 {[%emt 0:00:01]} Nf6 {[%emt 0:00:00]} 4. e3 {[%emt 0:00:03]} Bg4 {[%emt 0:00:01]} 5. h3 {[%emt 0:00:04]} Bxf3 {[%emt 0:00:04]} 6. Qxf3 {[%emt 0:00:03]} e6 {[%emt 0:00:02]} 7. Nc3 {[%emt 0:00:06]} Nbd7 {[%emt 0:00:05]} 8. Bd2 {[%emt 0:00:09]} Bb4 {[%emt 0:00:04]} 9. g4 {[%emt 0:00:07]} Qe7 {[%emt 0:00:13]} 10. O-O-O {[%emt 0:00:20]} Rc8 {[%emt 0:01:44]} 11. g5 {[%emt 0:00:22]} Bxc3 {[%emt 0:00:04]} 12. gxf6 {[%emt 0:00:58]} Bxd2+ {[%emt 0:00:02]} 13. Rxd2 {[%emt 0:00:03]} Nxf6 {[%emt 0:00:18]} 14. Bd3 {[%emt 0:00:18]} c5 {[%emt 0:00:11]} 15. Kb1 {[%emt 0:03:31]} cxd4 {[%emt 0:00:05]} 16. cxd5 {[%emt 0:00:11]} Nxd5 {[%emt 0:03:10]} 17. Bb5+ {[%emt 0:00:08]} Kf8 {[%emt 0:00:01]} 18. Rxd4 {[%emt 0:00:19]} Qf6 {[%emt 0:00:04]} 19. Qd1 {[%emt 0:01:40]} g6 {[%emt 0:00:11]} 20. Bc4 {[%emt 0:02:11]} Nb6 {[%emt 0:00:10]} 21. Rf4 {[%emt 0:00:04]} Qe5 {[%emt 0:00:03]} 22. Bb3 {[%emt 0:00:17]} Kg7 {[%emt 0:00:03]} 23. Rd4 {[%emt 0:00:13]} Rc7 {[%emt 0:00:09]} 24. h4 {[%emt 0:00:25]} Qf5+ {[%emt 0:00:13]} 25. Bc2 {[%emt 0:01:28]} Qf6 {[%emt 0:02:04]} 26. h5 {[%emt 0:00:19]} Rhc8 {[%emt 0:00:02]} 27. Bb3 {[%emt 0:02:29]} e5 {[%emt 0:02:50]} 28. h6+ {[%emt 0:00:48]} Kg8 {[%emt 0:00:02]} 29. Rd6 {[%emt 0:00:19]} Rc1+ {[%emt 0:00:19]} 30. Qxc1 {[%emt 0:00:02]} Rxc1+ {[%emt 0:00:01]} 31. Rxc1 {[%emt 0:00:02]} Qxd6 {[%emt 0:00:01]} 32. Rd1 {[%emt 0:00:07]} Qf8 {[%emt 0:00:03]} 0-1

[Event "African Games Rapid Open 2019"]
[Site "Casablanca"]
[Date "2019.08.26"]
[Round "2.12"]
[White "Chumfwa, Stanley"]
[Black "Khetho, Phemelo"]
[Result "1/2-1/2"]
[ECO "C42"]
[WhiteElo "2317"]
[BlackElo "2178"]
[Annotator "NA"]
[PlyCount "60"]
[EventDate "2019.08.26"]
[EventType "team-tourn"]
[EventCountry "MAR"]
[SourceTitle "playchess.com"]
[Source "ChessBase"]
[SourceQuality "1"]
[TimeControl "900+10"]

1. e4 {[%emt 0:00:00]} e5 {[%emt 0:00:00]} 2. Nf3 {[%emt 0:00:00]} Nf6 {[%emt 0:00:00]} 3. Nxe5 {[%emt 0:00:00]} d6 {[%emt 0:00:00]} 4. Nf3 {[%emt 0:00:00]} Nxe4 {[%emt 0:00:00]} 5. d4 {[%emt 0:00:02]} d5 {[%emt 0:00:00]} 6. Bd3 {[%emt 0:00:02]} Bd6 {[%emt 0:00:02]} 7. O-O {[%emt 0:00:11]} O-O {[%emt 0:00:02]} 8. c4 {[%emt 0:00:07]} c6 {[%emt 0:00:02]} 9. Qb3 {[%emt 0:00:08]} dxc4 {[%emt 0:00:41]} 10. Bxc4 {[%emt 0:00:11]} Nd7 {[%emt 0:00:52]} 11. Nc3 {[%emt 0:00:38]} Nxc3 {[%emt 0:00:11]} 12. bxc3 {[%emt 0:00:17]} h6 {[%emt 0:00:19]} 13. Qc2 {[%emt 0:01:06]} Nf6 {[%emt 0:00:08]} 14. Ne5 {[%emt 0:00:43]} Nd5 {[%emt 0:01:35]} 15. Bd2 {[%emt 0:00:42]} Qf6 {[%emt 0:01:43]} 16. f4 {[%emt 0:01:32]} Nb6 {[%emt 0:00:33]} 17. Bd3 {[%emt 0:00:14]} c5 {[%emt 0:00:03]} 18. Rae1 {[%emt 0:00:59]} cxd4 {[%emt 0:00:16]} 19. cxd4 {[%emt 0:00:02]} Be6 {[%emt 0:00:03]} 20. a4 {[%emt 0:03:25]} Rac8 {[%emt 0:00:40]} 21. Qd1 {[%emt 0:00:02]} Rfd8 {[%emt 0:00:13]} 22. Qe2 {[%emt 0:00:18]} Nxa4 {[%emt 0:01:12]} 23. Qe4 {[%emt 0:00:11]} g6 {[%emt 0:00:30]} 24. Qxb7 {[%emt 0:02:11]} Bxe5 {[%emt 0:01:11]} 25. fxe5 {[%emt 0:00:27]} Qh4 {[%emt 0:00:02]} 26. Be3 {[%emt 0:00:50]} Nc5 {[%emt 0:00:24]} 27. dxc5 {[%emt 0:00:15]} Rxd3 {[%emt 0:00:02]} 28. Qxa7 {[%emt 0:00:34]} Qh5 {[%emt 0:01:45]} 29. Qe7 {[%emt 0:01:16]} Qxe5 {[%emt 0:00:22]} 30. Bxh6 {[%emt 0:01:20]} Qxc5+ {[%emt 0:00:06]} 1/2-1/2

[Event "African Games Rapid Open 2019"]
[Site "Casablanca"]
[Date "2019.08.26"]
[Round "2.13"]
[White "Mphungu, Gerrard"]
[Black "Winston Gerald, Mansfield Thomas"]
[Result "1-0"]
[ECO "A40"]
[WhiteElo "2107"]
[BlackElo "1872"]
[Annotator "NA"]
[PlyCount "72"]
[EventDate "2019.08.26"]
[EventType "team-tourn"]
[EventCountry "MAR"]
[SourceTitle "playchess.com"]
[Source "ChessBase"]
[SourceQuality "1"]
[TimeControl "900+10"]

1. d4 {[%emt 0:00:00]} c6 {[%emt 0:00:00]} 2. c4 {[%emt 0:00:00]} d6 {[%emt 0:00:00]} 3. Nf3 {[%emt 0:00:13]} Qc7 {[%emt 0:00:00]} 4. e4 {[%emt 0:00:17]} Bg4 {[%emt 0:00:01]} 5. Be2 {[%emt 0:00:02]} Nd7 {[%emt 0:00:03]} 6. h3 {[%emt 0:00:12]} Bh5 {[%emt 0:00:02]} 7. Nc3 {[%emt 0:00:14]} e5 {[%emt 0:00:03]} 8. Be3 {[%emt 0:00:29]} Ngf6 {[%emt 0:00:04]} 9. Qd2 {[%emt 0:00:39]} Be7 {[%emt 0:00:03]} 10. Rd1 {[%emt 0:00:48]} a5 {[%emt 0:00:13]} 11. O-O {[%emt 0:00:12]} O-O {[%emt 0:00:02]} 12. dxe5 {[%emt 0:00:02]} dxe5 {[%emt 0:00:21]} 13. g4 {[%emt 0:00:04]} Bg6 {[%emt 0:00:07]} 14. g5 {[%emt 0:00:02]} Bb4 {[%emt 0:01:18]} 15. gxf6 {[%emt 0:00:23]} Nxf6 {[%emt 0:00:02]} 16. Qc2 {[%emt 0:00:34]} Bxc3 {[%emt 0:00:05]} 17. Qxc3 {[%emt 0:00:06]} Nxe4 {[%emt 0:00:07]} 18. Qxe5 {[%emt 0:00:17]} Qc8 {[%emt 0:00:24]} 19. Nh4 {[%emt 0:00:52]} Re8 {[%emt 0:00:20]} 20. Qh2 {[%emt 0:00:29]} Qe6 {[%emt 0:00:23]} 21. Nxg6 {[%emt 0:00:38]} hxg6 {[%emt 0:00:11]} 22. Bf3 {[%emt 0:01:21]} Nf6 {[%emt 0:00:52]} 23. b3 {[%emt 0:01:23]} a4 {[%emt 0:00:14]} 24. Rd6 {[%emt 0:00:19]} Qf5 {[%emt 0:00:05]} 25. Qg3 {[%emt 0:00:49]} axb3 {[%emt 0:00:18]} 26. axb3 {[%emt 0:00:01]} Ra3 {[%emt 0:00:51]} 27. Rfd1 {[%emt 0:00:57]} Rxb3 {[%emt 0:00:58]} 28. Rd8 {[%emt 0:00:07]} Qe6 {[%emt 0:01:38]} 29. Rxe8+ {[%emt 0:00:34]} Nxe8 {[%emt 0:00:14]} 30. Rd8 {[%emt 0:00:41]} f5 {[%emt 0:02:10]} 31. c5 {[%emt 0:01:21]} Rb4 {[%emt 0:03:07]} 32. Qd6 {[%emt 0:01:05]} Qf7 {[%emt 0:02:14]} 33. Kg2 {[%emt 0:01:09]} g5 {[%emt 0:02:57]} 34. Qe5 {[%emt 0:01:33]} Kf8 {[%emt 0:00:28]} 35. Bxg5 {[%emt 0:00:09]} Qg6 36. Qe7+ Kg8 1-0

[Event "African Games Rapid Open 2019"]
[Site "Casablanca"]
[Date "2019.08.26"]
[Round "2.14"]
[White "Amba, Oyon Marius Claude"]
[Black "Gole, Habtamu Ashenafi"]
[Result "1/2-1/2"]
[ECO "B93"]
[WhiteElo "1911"]
[BlackElo "2046"]
[Annotator "NA"]
[PlyCount "73"]
[EventDate "2019.08.26"]
[EventType "team-tourn"]
[EventCountry "MAR"]
[SourceTitle "playchess.com"]
[Source "ChessBase"]
[SourceQuality "1"]
[TimeControl "900+10"]

1. e4 {[%emt 0:00:00]} c5 {[%emt 0:00:00]} 2. Nf3 {[%emt 0:00:00]} d6 {[%emt 0:00:00]} 3. d4 {[%emt 0:00:00]} cxd4 {[%emt 0:00:00]} 4. Nxd4 {[%emt 0:00:01]} Nf6 {[%emt 0:00:00]} 5. Nc3 {[%emt 0:00:01]} a6 {[%emt 0:00:00]} 6. f4 {[%emt 0:00:04]} e6 {[%emt 0:00:07]} 7. Nf3 {[%emt 0:00:06]} Be7 {[%emt 0:00:03]} 8. Bd3 {[%emt 0:00:01]} Nbd7 {[%emt 0:00:04]} 9. O-O {[%emt 0:00:03]} Qc7 {[%emt 0:00:22]} 10. Kh1 {[%emt 0:00:03]} b5 {[%emt 0:00:05]} 11. a3 {[%emt 0:00:01]} Bb7 {[%emt 0:00:01]} 12. Qe1 {[%emt 0:00:01]} Rc8 {[%emt 0:00:44]} 13. f5 {[%emt 0:00:56]} e5 {[%emt 0:00:07]} 14. Bg5 {[%emt 0:00:08]} Nb6 {[%emt 0:00:07]} 15. Rd1 {[%emt 0:00:54]} h6 {[%emt 0:00:02]} 16. Bh4 {[%emt 0:00:18]} Nc4 {[%emt 0:00:07]} 17. Bxc4 {[%emt 0:00:20]} Qxc4 {[%emt 0:00:04]} 18. Bxf6 {[%emt 0:00:03]} gxf6 {[%emt 0:00:07]} 19. Qe3 {[%emt 0:01:23]} Qc5 {[%emt 0:00:23]} 20. Rfe1 {[%emt 0:00:52]} a5 {[%emt 0:00:57]} 21. Qxc5 {[%emt 0:00:28]} Rxc5 {[%emt 0:00:01]} 22. Nd2 {[%emt 0:00:02]} b4 {[%emt 0:00:14]} 23. axb4 {[%emt 0:00:18]} axb4 {[%emt 0:00:01]} 24. Na2 {[%emt 0:02:04]} Rxc2 {[%emt 0:00:02]} 25. Nxb4 {[%emt 0:00:01]} Rxb2 {[%emt 0:00:08]} 26. Nd3 {[%emt 0:00:01]} Ra2 {[%emt 0:01:15]} 27. Nb4 {[%emt 0:00:25]} Ra4 {[%emt 0:00:11]} 28. Rb1 {[%emt 0:00:17]} O-O {[%emt 0:01:07]} 29. Nd5 {[%emt 0:00:58]} Bxd5 {[%emt 0:00:02]} 30. exd5 {[%emt 0:00:01]} Rd4 {[%emt 0:00:18]} 31. Ne4 {[%emt 0:00:05]} Rc8 {[%emt 0:00:27]} 32. h3 {[%emt 0:00:14]} Rcc4 {[%emt 0:00:20]} 33. Rb8+ {[%emt 0:00:14]} Kg7 {[%emt 0:00:10]} 34. Re3 {[%emt 0:02:36]} Rd1+ {[%emt 0:02:47]} 35. Kh2 {[%emt 0:00:03]} Rcc1 {[%emt 0:09:24]} 36. Rg3+ {[%emt 0:00:04]} Kh7 {[%emt 0:00:01]} 37. Rgg8 {[%emt 0:00:57]} 1/2-1/2